fUST/lending_fUST_20250901
["ID","MTS","AMOUNT","RATE_DAILY","PERIOD"]
[382629890,1756687843741,-480.0,0.00016068,2]
[382629892,1756687843750,-480.0,0.00016068,2]
[382629894,1756687843759,-151.0,0.00016068,2]
[382629896,1756687843769,-480.0,0.00016068,2]
[382629898,1756687843779,-151.0,0.00016068,2]
[382629900,1756687843788,-480.0,0.00016068,2]
[382629902,1756687843798,-151.0,0.00016068,2]
[382629904,1756687843808,-151.0,0.00016068,2]
[382629906,1756687843817,-480.0,0.00016068,2]
[382629908,1756687843827,-480.0,0.00016068,2]
[382629910,1756687843837,-1256.27,0.00016068,2]
[382629912,1756687843846,-480.0,0.00016068,2]
[382629914,1756687843855,-480.0,0.00016068,2]
[382629916,1756687843864,-480.0,0.00016068,2]
[382629918,1756687843874,-480.0,0.00016068,2]
[382629920,1756687843884,-480.0,0.00016068,2]
[382629922,1756687843893,-603.63,0.00016068,2]
[382629924,1756687843903,-480.0,0.00016068,2]
[382629926,1756687843912,-480.0,0.00016068,2]
[382629929,1756687843922,-151.0,0.00016068,2]
[382629931,1756687843933,-485.36376291,0.00016068,2]
[382629933,1756687843943,-401.32617382,0.00016068,2]
[382629935,1756687843952,-480.0,0.00016068,2]
[382629937,1756687843961,-480.0,0.00016068,2]
[382629939,1756687843971,-480.0,0.00016068,2]
[382629941,1756687843980,-480.0,0.00016068,2]
[382629943,1756687843992,-480.0,0.00016068,2]
[382629945,1756687844002,-687.41,0.00016068,2]
[382629947,1756687844012,-480.0,0.00016068,2]
[382629949,1756687844021,-480.0,0.00016068,2]
[382629951,1756687844030,-507.08,0.00016068,2]
[382629953,1756687844044,-480.0,0.00016068,2]
[382629955,1756687844053,-480.0,0.00016068,2]
[382629957,1756687844062,-539.42,0.00016068,2]
[382629959,1756687844071,-564.53,0.00016068,2]
[382629961,1756687844082,-480.0,0.00016068,2]
[382629963,1756687844091,-1492.21,0.00016068,2]
[382629965,1756687844101,-1418.84,0.00016068,2]
[382629967,1756687844110,-915.01,0.00016068,2]
[382629969,1756687844121,-480.0,0.00016068,2]
[382629971,1756687844131,-480.0,0.00016068,2]
[382629973,1756687844141,-480.0,0.00016068,2]
[382629975,1756687844151,-480.0,0.00016068,2]
[382629977,1756687844160,-480.0,0.00016068,2]
[382629979,1756687844170,-480.0,0.00016068,2]
[382629981,1756687844179,-480.0,0.00016068,2]
[382629983,1756687844189,-532.35,0.00016068,2]
[382629985,1756687844198,-480.0,0.00016068,2]
[382629987,1756687844207,-151.0,0.00016068,2]
[382629989,1756687844217,-480.0,0.00016068,2]
[382629991,1756687844227,-151.0,0.00016068,2]
[382629993,1756687844236,-1327.24,0.00016068,2]
[382629995,1756687844249,-480.0,0.00016068,2]
[382629997,1756687844258,-954.9,0.00016068,2]
[382629999,1756687844267,-1178.04,0.00016068,2]
[382630001,1756687844276,-480.0,0.00016068,2]
[382630003,1756687844285,-480.0,0.00016068,2]
[382630005,1756687844295,-480.0,0.00016068,2]
[382630007,1756687844304,-480.0,0.00016068,2]
[382630009,1756687844313,-480.0,0.00016068,2]
[382630011,1756687844323,-480.0,0.00016068,2]
[382630013,1756687844331,-1319.04,0.00016068,2]
[382630015,1756687844341,-480.0,0.00016068,2]
[382630017,1756687844350,-480.0,0.00016068,2]
[382630019,1756687844359,-480.0,0.00016068,2]
[382630021,1756687844368,-1301.79,0.00016068,2]
[382630023,1756687844377,-480.0,0.00016068,2]
[382630025,1756687844387,-480.0,0.00016068,2]
[382630027,1756687844396,-480.0,0.00016068,2]
[382630029,1756687844406,-480.0,0.00016068,2]
[382630031,1756687844415,-480.0,0.00016068,2]
[382630033,1756687844425,-632.36,0.00016068,2]
[382630035,1756687844434,-480.0,0.00016068,2]
[382630037,1756687844444,-626.12,0.00016068,2]
[382630039,1756687844453,-480.0,0.00016068,2]
[382630041,1756687844463,-151.55384,0.00016068,2]
[382630043,1756687844472,-480.0,0.00016068,2]
[382630045,1756687844482,-480.0,0.00016068,2]
[382630047,1756687844493,-480.0,0.00016068,2]
[382630049,1756687844503,-480.0,0.00016068,2]
[382630051,1756687844513,-480.0,0.00016068,2]
[382630053,1756687844523,-480.46872246,0.00016068,2]
[382630055,1756687844532,-1282.24,0.00016068,2]
[382630057,1756687844541,-597.33,0.00016068,2]
[382630059,1756687844552,-400.0,0.00016068,2]
[382630061,1756687844561,-480.0,0.00016068,2]
[382630063,1756687844570,-480.72266844,0.00016068,2]
[382630065,1756687844579,-481.98236086,0.00016068,2]
[382630067,1756687844588,-482.2012894,0.00016068,2]
[382630069,1756687844598,-481.12814767,0.00016068,2]
[382630071,1756687844607,-480.0,0.00016068,2]
[382630073,1756687844617,-481.09469984,0.00016068,2]
[382630075,1756687844625,-447.15716956,0.00016068,2]
[382630077,1756687844635,-1208.35,0.00016068,2]
[382630079,1756687844644,-480.0,0.00016068,2]
[382630081,1756687844653,-480.0,0.00016068,2]
[382630083,1756687844662,-480.0,0.00016068,2]
[382630085,1756687844672,-480.0,0.00016068,2]
[382630087,1756687844682,-312.43713229,0.00016068,2]
[382630089,1756687844692,-480.0,0.00016068,2]
[382630091,1756687844702,-480.0,0.00016068,2]
[382630093,1756687844712,-480.0,0.00016068,2]
[382630095,1756687844721,-537.46,0.00016068,2]
[382630098,1756687844732,-480.0,0.00016068,2]
[382630100,1756687844744,-1127.08,0.00016068,2]
[382630102,1756687844754,-480.0,0.00016068,2]
[382630103,1756687844764,-480.0,0.00016068,2]
[382630105,1756687844775,-480.0,0.00016068,2]
[382630107,1756687844784,-480.0,0.00016068,2]
[382630109,1756687844793,-1167.29,0.00016068,2]
[382630111,1756687844802,-480.0,0.00016068,2]
[382630113,1756687844811,-480.0,0.00016068,2]
[382630115,1756687844820,-480.0,0.00016068,2]
[382630117,1756687844829,-480.0,0.00016068,2]
[382630119,1756687844838,-480.0,0.00016068,2]
[382630121,1756687844848,-480.0,0.00016068,2]
[382630123,1756687844858,-480.0,0.00016068,2]
[382630125,1756687844867,-1304.43,0.00016068,2]
[382630127,1756687844877,-480.0,0.00016068,2]
[382630129,1756687844886,-481.80391927,0.00016068,2]
[382630131,1756687844895,-480.0,0.00016068,2]
[382630133,1756687844904,-1072.46,0.00016068,2]
[382630135,1756687844913,-480.0,0.00016068,2]
[382630137,1756687844922,-480.0,0.00016068,2]
[382630139,1756687844931,-958.16,0.00016068,2]
[382630141,1756687844941,-1440.15,0.00016068,2]
[382630143,1756687844950,-480.0,0.00016068,2]
[382630145,1756687844959,-480.0,0.00016068,2]
[382630147,1756687844967,-480.0,0.00016068,2]
[382630149,1756687844977,-795.37,0.00016068,2]
[382630151,1756687844985,-480.0,0.00016068,2]
[382630153,1756687844996,-626.57,0.00016068,2]
[382630155,1756687845005,-508.59,0.00016068,2]
[382630157,1756687845014,-480.0,0.00016068,2]
[382630159,1756687845023,-480.0,0.00016068,2]
[382630161,1756687845032,-480.0,0.00016068,2]
[382630163,1756687845044,-635.1,0.00016068,2]
[382630165,1756687845053,-480.0,0.00016068,2]
[382630167,1756687845062,-480.0,0.00016068,2]
[382630169,1756687845071,-584.5,0.00016068,2]
[382630171,1756687845080,-480.0,0.00016068,2]
[382630173,1756687845091,-480.0,0.00016068,2]
[382630175,1756687845099,-1000.0,0.00016068,2]
[382630177,1756687845109,-510.7510522,0.00016068,2]
[382630179,1756687845120,-480.0,0.00016068,2]
[382630181,1756687845129,-480.0,0.00016068,2]
[382630183,1756687845138,-151.0,0.00016068,2]
[382630186,1756687845148,-480.0,0.00016068,2]
[382630188,1756687845158,-2022.72,0.00016068,2]
[382630190,1756687845167,-480.0,0.00016068,2]
[382630192,1756687845176,-751.25,0.00016068,2]
[382630194,1756687845185,-1267.73,0.00016068,2]
[382630196,1756687845195,-480.0,0.00016068,2]
[382630198,1756687845204,-481.78518685,0.00016068,2]
[382630199,1756687845214,-411.47985354,0.00016068,2]
[382630202,1756687845223,-480.0,0.00016068,2]
[382630204,1756687845232,-1300.22,0.00016068,2]
[382630205,1756687845244,-480.0,0.00016069,2]
[382630207,1756687845253,-480.0,0.00016069,2]
[382630209,1756687845263,-480.0,0.00016069,2]
[382630212,1756687845273,-480.0,0.00016069,2]
[382630214,1756687845282,-540.74,0.00016069,2]
[382630216,1756687845291,-482.18,0.00016069,2]
[382630218,1756687845300,-480.0,0.00016069,2]
[382630220,1756687845310,-198.85582042,0.00016069,2]
[382630222,1756687845318,-480.0,0.00016069,2]
[382630224,1756687845327,-199.61855014,0.00016069,2]
[382630226,1756687845336,-480.0,0.00016069,2]
[382630228,1756687845346,-480.0,0.00016069,2]
[382630230,1756687845355,-480.0,0.00016069,2]
[382630231,1756687845364,-480.0,0.00016069,2]
[382630233,1756687845373,-480.0,0.00016069,2]
[382630235,1756687845382,-480.0,0.00016069,2]
[382630237,1756687845392,-587.8,0.00016069,2]
[382630239,1756687845401,-506.86,0.00016069,2]
[382630241,1756687845411,-480.0,0.00016069,2]
[382630243,1756687845420,-1254.21,0.00016069,2]
[382630245,1756687845429,-480.0,0.00016069,2]
[382630247,1756687845438,-480.0,0.00016069,2]
[382630249,1756687845447,-480.0,0.00016069,2]
[382630251,1756687845457,-1234.42,0.00016069,2]
[382630253,1756687845467,-473.10260644,0.00016069,2]
[382630255,1756687845476,-480.0,0.00016069,2]
[382630257,1756687845485,-480.0,0.00016069,2]
[382630259,1756687845495,-1177.56,0.00016069,2]
[382630261,1756687845505,-480.0,0.00016069,2]
[382630263,1756687845515,-480.0,0.00016069,2]
[382630265,1756687845524,-480.0,0.00016069,2]
[382630267,1756687845533,-547.85,0.00016069,2]
[382630269,1756687845542,-480.0,0.00016069,2]
[382630271,1756687845552,-480.0,0.00016069,2]
[382630273,1756687845562,-645.43,0.00016069,2]
[382630275,1756687845572,-496.59,0.00016069,2]
[382630277,1756687845581,-381.87211716,0.00016069,2]
[382630279,1756687845590,-480.0,0.00016069,2]
[382630281,1756687845599,-480.0,0.00016069,2]
[382630283,1756687845608,-480.0,0.00016069,2]
[382630285,1756687845617,-480.0,0.00016069,2]
[382630287,1756687845627,-480.0,0.00016069,2]
[382630289,1756687845636,-480.0,0.00016069,2]
[382630291,1756687845646,-480.0,0.00016069,2]
[382630292,1756687845656,-480.0,0.00016069,2]
[382630293,1756687845665,-480.0,0.00016069,2]
[382630294,1756687845674,-480.0,0.00016069,2]
[382630295,1756687845682,-480.0,0.00016069,2]
[382630296,1756687845691,-480.0,0.00016069,2]
[382630297,1756687845700,-492.22,0.00016069,2]
[382630298,1756687845709,-151.0,0.00016069,2]
[382630299,1756687845718,-151.0,0.00016069,2]
[382630300,1756687845727,-720.11,0.00016069,2]
[382630301,1756687845736,-151.0,0.00016069,2]
[382630302,1756687845744,-480.0,0.00016069,2]
[382630303,1756687845753,-151.0,0.00016069,2]
[382630304,1756687845762,-151.0,0.00016069,2]
[382630305,1756687845771,-151.0,0.00016069,2]
[382630306,1756687845780,-151.0,0.00016069,2]
[382630307,1756687845789,-280.615118,0.00016069,2]
[382630308,1756687845797,-480.0,0.00016069,2]
[382630310,1756687845806,-486.55803048,0.00016069,2]
[382630311,1756687845815,-585.35,0.00016069,2]
[382630312,1756687845824,-480.0,0.00016069,2]
[382630314,1756687845834,-482.67512475,0.00016069,2]
[382630316,1756687845844,-480.0,0.00016069,2]
[382630318,1756687845853,-480.0,0.00016069,2]
[382630320,1756687845862,-480.0,0.00016069,2]
[382630322,1756687845872,-480.0,0.00016069,2]
[382630324,1756687845882,-151.0,0.00016069,2]
[382630326,1756687845891,-282.719668,0.00016069,2]
[382630328,1756687845900,-1000.0,0.00016069,2]
[382630330,1756687845909,-480.0,0.00016069,2]
[382630332,1756687845919,-151.0,0.00016069,2]
[382630334,1756687845929,-151.0,0.00016069,2]
[382630336,1756687845939,-721.85,0.00016069,2]
[382630338,1756687845948,-151.0,0.00016069,2]
[382630340,1756687845957,-151.0,0.00016069,2]
[382630342,1756687845966,-225.188496,0.00016069,2]
[382630344,1756687845976,-480.0,0.00016069,2]
[382630346,1756687845985,-480.0,0.00016069,2]
[382630348,1756687845996,-480.0,0.00016069,2]
[382630350,1756687846007,-480.0,0.00016069,2]
[382630352,1756687846016,-480.0,0.00016069,2]
[382630355,1756687846025,-480.0,0.00016069,2]
[382630357,1756687846036,-480.0,0.00016069,2]
[382630359,1756687846050,-480.0,0.00016069,2]
[382630363,1756687846059,-480.0,0.00016069,2]
[382630365,1756687846069,-1431.94,0.00016069,2]
[382630366,1756687846079,-480.0,0.00016069,2]
[382630369,1756687846089,-480.0,0.00016069,2]
[382630371,1756687846099,-480.0,0.00016069,2]
[382630373,1756687846108,-480.0,0.00016069,2]
[382630375,1756687846117,-779.49,0.00016069,2]
[382630377,1756687846127,-742.41,0.00016069,2]
[382630379,1756687846136,-480.0,0.00016069,2]
[382630380,1756687846148,-480.0,0.00016069,2]
[382630382,1756687846158,-480.0,0.00016069,2]
[382630384,1756687846167,-1355.72,0.00016069,2]
[382630387,1756687846176,-480.0,0.00016069,2]
[382630389,1756687846186,-151.0,0.00016069,2]
[382630391,1756687846195,-480.0,0.00016069,2]
[382630393,1756687846205,-480.0,0.00016069,2]
[382630395,1756687846215,-480.0,0.00016069,2]
[382630397,1756687846224,-480.0,0.00016069,2]
[382630399,1756687846233,-480.0,0.00016069,2]
[382630401,1756687846243,-480.0,0.00016069,2]
[382630403,1756687846253,-480.81533709,0.00016069,2]
[382630405,1756687846262,-480.0,0.00016069,2]
[382630407,1756687846271,-480.0,0.00016069,2]
[382630409,1756687846281,-853.8,0.00016069,2]
[382630411,1756687846290,-480.0,0.00016069,2]
[382630413,1756687846299,-952.67,0.00016069,2]
[382630415,1756687846308,-500.0,0.00016069,2]
[382630417,1756687846318,-500.0,0.00016069,2]
[382630419,1756687846326,-500.0,0.00016069,2]
[382630421,1756687846335,-480.0,0.00016069,2]
[382630423,1756687846345,-480.0,0.00016069,2]
[382630425,1756687846354,-157.444891,0.00016069,2]
[382630427,1756687846363,-480.0,0.00016069,2]
[382630429,1756687846373,-480.0,0.00016069,2]
[382630431,1756687846382,-480.0,0.00016069,2]
[382630433,1756687846391,-480.0,0.00016069,2]
[382630435,1756687846401,-500.0,0.00016069,2]
[382630437,1756687846410,-405.51587298,0.00016069,2]
[382630439,1756687846420,-480.0,0.00016069,2]
[382630441,1756687846429,-480.0,0.00016069,2]
[382630443,1756687846439,-480.0,0.00016069,2]
[382630445,1756687846448,-480.0,0.00016069,2]
[382630447,1756687846458,-665.21,0.00016069,2]
[382630449,1756687846467,-480.0,0.00016069,2]
[382630451,1756687846476,-480.0,0.00016069,2]
[382630453,1756687846486,-480.0,0.00016069,2]
[382630455,1756687846496,-919.52,0.00016069,2]
[382630457,1756687846506,-480.0,0.00016069,2]
[382630459,1756687846516,-480.0,0.00016069,2]
[382630461,1756687846525,-480.0,0.00016069,2]
[382630463,1756687846535,-480.0,0.00016069,2]
[382630465,1756687846544,-480.0,0.00016069,2]
[382630467,1756687846553,-480.0,0.00016069,2]
[382630469,1756687846562,-480.0,0.00016069,2]
[382630471,1756687846572,-480.0,0.00016069,2]
[382630473,1756687846581,-602.84,0.00016069,2]
[382630475,1756687846590,-480.0,0.00016069,2]
[382630492,1756687846743,-1348.81,0.00016069,2]
[382630494,1756687846761,-480.0,0.00016069,2]
[382630496,1756687846771,-480.0,0.00016069,2]
[382630498,1756687846780,-745.56,0.00016069,2]
[382630500,1756687846790,-480.0,0.00016069,2]
[382630502,1756687846799,-480.0,0.00016069,2]
[382630504,1756687846808,-480.0,0.00016069,2]
[382630506,1756687846818,-636.73,0.00016069,2]
[382630508,1756687846827,-1065.89,0.00016069,2]
[382630510,1756687846836,-1007.05,0.00016069,2]
[382630512,1756687846846,-480.0,0.00016069,2]
[382630514,1756687846856,-498.04,0.00016069,2]
[382630516,1756687846866,-480.0,0.00016069,2]
[382630518,1756687846875,-480.0,0.00016069,2]
[382630520,1756687846884,-480.0,0.00016069,2]
[382630522,1756687846893,-1078.85,0.00016069,2]
[382630523,1756687846902,-480.0,0.00016069,2]
[382630526,1756687846912,-836.93,0.00016069,2]
[382630527,1756687846922,-480.0,0.00016069,2]
[382630529,1756687846931,-480.0,0.00016069,2]
[382630532,1756687846941,-757.88,0.00016069,2]
[382630533,1756687846951,-480.0,0.00016069,2]
[382630536,1756687846960,-480.0,0.00016069,2]
[382630538,1756687846970,-480.0,0.00016069,2]
[382630540,1756687846979,-480.0,0.00016069,2]
[382630542,1756687846989,-480.0,0.00016069,2]
[382630544,1756687846998,-480.0,0.00016069,2]
[382630546,1756687847008,-480.0,0.00016069,2]
[382630548,1756687847017,-480.0,0.00016069,2]
[382630550,1756687847026,-480.0,0.00016069,2]
[382630552,1756687847036,-480.0,0.00016069,2]
[382630554,1756687847049,-1027.14,0.00016069,2]
[382630556,1756687847058,-481.07907518,0.00016069,2]
[382630558,1756687847067,-692.73,0.00016069,2]
[382630560,1756687847077,-480.0,0.00016069,2]
[382630562,1756687847087,-480.0,0.00016069,2]
[382630564,1756687847096,-480.0,0.00016069,2]
[382630566,1756687847106,-640.96,0.00016069,2]
[382630568,1756687847115,-480.0,0.00016069,2]
[382630570,1756687847125,-480.0,0.00016069,2]
[382630572,1756687847135,-480.88289953,0.00016069,2]
[382630574,1756687847144,-480.0,0.00016069,2]
[382630576,1756687847154,-657.74,0.00016069,2]
[382630578,1756687847163,-480.0,0.00016069,2]
[382630580,1756687847173,-995.1,0.00016069,2]
[382630582,1756687847182,-480.0,0.00016069,2]
[382630584,1756687847192,-1702.2,0.0001607,2]
[382630586,1756687847201,-480.0,0.0001607,2]
[382630588,1756687847211,-480.0,0.0001607,2]
[382630590,1756687847220,-696.63,0.0001607,2]
[382630592,1756687847230,-3028.397421,0.0001607,2]
[382630594,1756687847240,-480.0,0.0001607,2]
[382630596,1756687847249,-480.0,0.0001607,2]
[382630598,1756687847259,-151.0,0.0001607,2]
[382630600,1756687847268,-151.0,0.0001607,2]
[382630602,1756687847277,-480.0,0.0001607,2]
[382630604,1756687847286,-572.22,0.0001607,2]
[382630606,1756687847295,-918.17,0.0001607,2]
[382630608,1756687847305,-903.61,0.0001607,2]
[382630610,1756687847314,-500.0,0.0001607,2]
[382630612,1756687847324,-500.0,0.0001607,2]
[382630614,1756687847333,-500.0,0.0001607,2]
[382630616,1756687847342,-500.0,0.0001607,2]
[382630618,1756687847352,-480.0,0.0001607,2]
[382630620,1756687847361,-1164.13,0.0001607,2]
[382630622,1756687847370,-482.59720954,0.0001607,2]
[382630624,1756687847381,-501.48,0.0001607,2]
[382630626,1756687847390,-480.0,0.0001607,2]
[382630628,1756687847400,-480.0,0.0001607,2]
[382630630,1756687847409,-480.0,0.0001607,2]
[382630632,1756687847419,-480.0,0.0001607,2]
[382630634,1756687847428,-570.88,0.0001607,2]
[382630636,1756687847438,-480.0,0.00016071,2]
[382630638,1756687847447,-539.37,0.00016071,2]
[382630640,1756687847456,-480.0,0.00016071,2]
[382630642,1756687847465,-480.0,0.00016071,2]
[382630645,1756687847474,-1296.92,0.00016071,2]
[382630648,1756687847483,-761.86,0.00016071,2]
[382630651,1756687847495,-480.0,0.00016071,2]
[382630654,1756687847504,-480.0,0.00016071,2]
[382630656,1756687847514,-480.0,0.00016071,2]
[382630658,1756687847523,-480.0,0.00016071,2]
[382630660,1756687847533,-632.19,0.00016071,2]
[382630662,1756687847542,-480.0,0.00016071,2]
[382630664,1756687847551,-151.0,0.00016071,2]
[382630666,1756687847560,-151.0,0.00016071,2]
[382630668,1756687847569,-151.0,0.00016071,2]
[382630670,1756687847579,-480.0,0.00016071,2]
[382630672,1756687847589,-480.0,0.00016071,2]
[382630674,1756687847598,-303.32377065,0.00016071,2]
[382630676,1756687847609,-480.0,0.00016071,2]
[382630678,1756687847619,-480.0,0.00016071,2]
[382630680,1756687847628,-487.56151785,0.00016071,2]
[382630682,1756687847638,-686.37,0.00016071,2]
[382630684,1756687847647,-578.59,0.00016071,2]
[382630686,1756687847657,-480.0,0.00016071,2]
[382630688,1756687847666,-574.82,0.00016071,2]
[382630690,1756687847676,-500.0,0.00016072,2]
[382630692,1756687847685,-500.0,0.00016072,2]
[382630694,1756687847695,-151.0,0.00016072,2]
[382630697,1756687847705,-500.0,0.00016072,2]
[382630699,1756687847714,-216.52043987,0.00016072,2]
[382630700,1756687847723,-151.0,0.00016072,2]
[382630702,1756687847733,-500.0,0.00016072,2]
[382630704,1756687847746,-151.0,0.00016079,2]
[382630706,1756687847756,-239.35076144,0.00016079,2]
[382630708,1756687847766,-151.0,0.00016079,2]
[382630710,1756687847776,-151.0,0.00016079,2]
[382630713,1756687847786,-198.0,0.00016079,2]
[382630714,1756687847796,-151.0,0.00016079,2]
[382630716,1756687847805,-500.0,0.00016079,2]
[382630718,1756687847814,-151.0,0.00016079,2]
[382630720,1756687847823,-198.0,0.00016079,2]
[382630722,1756687847833,-151.0,0.00016079,2]
[382630724,1756687847842,-198.0,0.00016079,2]
[382630726,1756687847852,-151.0,0.00016079,2]
[382630728,1756687847862,-151.0,0.0001608,2]
[382630730,1756687847872,-151.0,0.0001608,2]
[382630732,1756687847881,-151.0,0.0001608,2]
[382630734,1756687847891,-151.0,0.0001608,2]
[382630736,1756687847901,-151.0,0.0001608,2]
[382630738,1756687847912,-660.0,0.00016091,2]
[382630740,1756687847922,-660.0,0.00016099,2]
[382630743,1756687847932,-151.0,0.000161,2]
[382630744,1756687847942,-151.0,0.000161,2]
[382630746,1756687847953,-1200.20471219,0.00016102,2]
[382630748,1756687847963,-660.0,0.00016108,2]
[382630750,1756687847974,-1200.20471219,0.00016172,2]
[382630751,1756687847983,-660.0,0.00016178,2]
[382630752,1756687847995,-660.0,0.000162,2]
[382630753,1756687848005,-151.0,0.000162,2]
[382630754,1756687848015,-151.0,0.000162,2]
[382630755,1756687848026,-151.0,0.000162,2]
[382630756,1756687848037,-151.0,0.000162,2]
[382630757,1756687848051,-1200.20471219,0.00016242,2]
[382630758,1756687848062,-174.4167197,0.00016245,2]
[382630759,1756687848071,-660.0,0.00016293,2]
[382630760,1756687848082,-412.376,0.00016295,2]
[382630761,1756687848092,-151.0,0.000163,2]
[382630762,1756687848103,-151.0,0.000163,2]
[382630763,1756687848113,-151.0,0.000163,2]
[382630764,1756687848124,-151.0,0.000163,2]
[382630765,1756687848135,-151.0,0.000163,2]
[382630766,1756687848145,-480.0,0.00016333,2]
[382630767,1756687848155,-480.0,0.00016333,2]
[382630768,1756687848165,-1122.55,0.00016333,2]
[382630769,1756687848175,-1261.83,0.00016333,2]
[382630770,1756687848184,-519.65,0.00016333,2]
[382630771,1756687848194,-480.0,0.00016333,2]
[382630772,1756687848204,-480.0,0.00016335,2]
[382630773,1756687848214,-963.66,0.00016335,2]
[382630774,1756687848225,-480.0,0.00016335,2]
[382630775,1756687848236,-480.0,0.00016335,2]
[382630776,1756687848251,-1331.97,0.00016335,2]
[382630777,1756687848261,-487.89368144,0.00016335,2]
[382630778,1756687848272,-480.0,0.00016335,2]
[382630779,1756687848282,-480.0,0.00016335,2]
[382630780,1756687848293,-480.0,0.00016335,2]
[382630781,1756687848302,-480.0,0.00016335,2]
[382630782,1756687848312,-565.58,0.00016335,2]
[382630783,1756687848322,-480.0,0.00016335,2]
[382630784,1756687848333,-510.97,0.00016335,2]
[382630785,1756687848344,-480.0,0.00016335,2]
[382630787,1756687848354,-340.52089374,0.00016335,2]
[382630788,1756687848365,-613.56,0.00016335,2]
[382630789,1756687848374,-887.25,0.00016335,2]
[382630791,1756687848385,-422.15046608,0.00016335,2]
[382630793,1756687848395,-480.0,0.00016335,2]
[382630795,1756687848405,-480.0,0.00016335,2]
[382630797,1756687848415,-480.0,0.00016335,2]
[382630799,1756687848424,-480.0,0.00016335,2]
[382630801,1756687848435,-480.0,0.00016335,2]
[382630803,1756687848444,-662.13,0.00016335,2]
[382630805,1756687848453,-480.0,0.00016335,2]
[382630807,1756687848463,-480.0,0.00016335,2]
[382630809,1756687848472,-480.0,0.00016335,2]
[382630810,1756687848482,-648.74,0.00016335,2]
[382630813,1756687848496,-480.0,0.00016335,2]
[382630815,1756687848505,-480.0,0.00016335,2]
[382630817,1756687848515,-2943.35,0.00016335,2]
[382630818,1756687848524,-480.0,0.00016335,2]
[382630820,1756687848534,-636.74,0.00016335,2]
[382630822,1756687848544,-711.48,0.00016335,2]
[382630824,1756687848555,-480.0,0.00016335,2]
[382630827,1756687848565,-480.0,0.00016335,2]
[382630828,1756687848575,-480.0,0.00016335,2]
[382630830,1756687848585,-577.83,0.00016335,2]
[382630832,1756687848595,-692.85,0.00016335,2]
[382630834,1756687848604,-480.0,0.00016335,2]
[382630836,1756687848614,-480.0,0.00016335,2]
[382630839,1756687848625,-1328.76,0.00016335,2]
[382630841,1756687848637,-229.42569304,0.00016335,2]
[382630843,1756687848646,-1582.58,0.00016335,2]
[382630845,1756687848656,-577.22162253,0.00016335,2]
[382630847,1756687848665,-480.0,0.00016335,2]
[382630849,1756687848675,-2071.03,0.00016335,2]
[382630850,1756687848685,-480.0,0.00016335,2]
[382630853,1756687848696,-480.0,0.00016335,2]
[382630855,1756687848706,-480.0,0.00016335,2]